Workbook

Sheet Start
A2: This program was created to calculate the price of “Call” and “Put” options for non-dividend stocks.
A3: You may use the Black-Scholes Model and/or the Binominal (tree) Model.
A7: To calculate the option price, please press the Start button and follow the instructions.

Sheet BlackScholesModel
A1: Black-Scholes Model for pricing European puts, calls
A3: Input data
A4: Type of option (1 for call, 2 for put) | B4: 2
A5: Stock price (So) | B5: 130.3000031
A6: Exercise price (X) | B6: 125
A7: Today's date | B7: 2010-04-03
A8: Exercise date | B8: 2010-04-19
A9: Riskfree interest rate | B9: 0.002499999944
A10: StDev of annual return | B10: 0.200000003
A11: Annual Mean | B11: 0
A12: Duration (trading days) | B12: =(ExerciseDate-CurrentDate)+1 -> 17
A14: Quantities for Black-Scholes formula
A15: d1 | B15: =(LN(B5/B6)+(B9+B10^2/2)*((NETWORKDAYS(B7,B8))/250))/(B10*((NETWORKDAYS(B7,B8))/250)^(1/2)) -> 1.013429895 | D15: N(d1) | E15: =NORMSDIST(B15) -> 0.844572567
A16: d2 | B16: =(LN(B5/B6)+(B9-B10^2/2)*((NETWORKDAYS(B7,B8))/250))/(B10*((NETWORKDAYS(B7,B8))/250)^(1/2)) -> 0.9714775406 | D16: N(d2) | E16: =NORMSDIST(B16) -> 0.834344734
A18: Call Option price | B18: =B5*E15-B6*EXP(-B9*((B8-B7)/250))*E16 -> 5.771401866
A20: PV (X) | B20: =-PV(RiskfreeRate,Duration/250,,ExercisePrice) -> 124.9787783
A21: Put Option price | B21: =B18+B20-CurrentPrice -> 0.4501771348

Sheet BinominalModel
A1: Black-Scholes model for pricing European puts, calls
A3: Input data
A4: Type of option (1 for call, 2 for put) | B4: 2
A5: Stock price (So) | B5: 130.3000031
A6: Exercise price (X) | B6: 125
A7: Today's date | B7: 2010-04-03
A8: Exercise date | B8: 2010-04-19
A9: Riskfree interest rate | B9: 0.002499999944
A10: StDev of annual return | B10: 0.200000003
A11: Annual Mean | B11: 0.07999999821
A13: Duration (trading days) | B13: =(ExerciseDate-CurrentDate)+1 -> 17
A15: Parameters for binomial tree
A16: Sub-periods (N) | B16: =(ExerciseDate-CurrentDate)+1 -> 17
A17: UP factor (U) | B17: =EXP((B11*(NETWORKDAYS(B7,B8)/250)/B16)+B10*((NETWORKDAYS(B7,B8)/250)/B16)^(1/2)) -> 1.010436079 | D17: UP probability | F17: =(RiskFreeFactor-DownFactor)/(UPfactor-DownFactor) -> 0.4876004723
A18: DOWN factor (D) | B18: =EXP((B11*(NETWORKDAYS(B7,B8)/250)/B16)-B10*((NETWORKDAYS(B7,B8)/250)/B16)^(1/2)) -> 0.990081633 | D18: DOWN probability | F18: =(UPfactor-RiskFreeFactor)/(UPfactor-DownFactor) -> 0.5123995277
A19: Risk-Free factor (F) | B19: =EXP((B9*(NETWORKDAYS(B7,B8)/250))/B16) -> 1.000006471
A20: Future prices | B20: 0 | C20: 1 | D20: 2 | E20: 3 | F20: 4 | G20: 5 | H20: 6 | I20: 7 | J20: 8 | K20: 9 | L20: 10 | M20: 11 | N20: 12 | O20: 13 | P20: 14 | Q20: 15 | R20: 16 | S20: 17
A21: 0 | B21: 130.3 | C21: =UPfactor*B21 -> 131.6598211 | D21: 133.0338335 | E21: 134.4221851 | F21: 135.8250257 | G21: 137.2425064 | H21: 138.6747801 | I21: 140.1220011 | J21: 141.5843254 | K21: 143.0619107 | L21: 144.5549161 | M21: 146.0635027 | N21: 147.587833 | O21: 149.1280713 | P21: 150.6843837 | Q21: 152.2569379 | R21: 153.8459033 | S21: 155.4514514
A22: 1 | B22: =IF($A22<=B$20,(DownFactor/UPfactor)*B21,"") ->  | C22: =IF($A22<=C$20,(DownFactor/UPfactor)*C21,"") -> 129.0076368 | D22: =IF($A22<=D$20,(DownFactor/UPfactor)*D21,"") -> 130.3539707 | E22: =IF($A22<=E$20,(DownFactor/UPfactor)*E21,"") -> 131.7143551 | F22: =IF($A22<=F$20,(DownFactor/UPfactor)*F21,"") -> 133.0889365 | G22: =IF($A22<=G$20,(DownFactor/UPfactor)*G21,"") -> 134.4778632 | H22: =IF($A22<=H$20,(DownFactor/UPfactor)*H21,"") -> 135.8812849 | I22: =IF($A22<=I$20,(DownFactor/UPfactor)*I21,"") -> 137.2993527 | J22: =IF($A22<=J$20,(DownFactor/UPfactor)*J21,"") -> 138.7322197 | K22: =IF($A22<=K$20,(DownFactor/UPfactor)*K21,"") -> 140.1800401 | L22: =IF($A22<=L$20,(DownFactor/UPfactor)*L21,"") -> 141.6429701 | M22: =IF($A22<=M$20,(DownFactor/UPfactor)*M21,"") -> 143.1211674 | N22: =IF($A22<=N$20,(DownFactor/UPfactor)*N21,"") -> 144.6147912 | O22: =IF($A22<=O$20,(DownFactor/UPfactor)*O21,"") -> 146.1240027 | P22: =IF($A22<=P$20,(DownFactor/UPfactor)*P21,"") -> 147.6489644 | Q22: =IF($A22<=Q$20,(DownFactor/UPfactor)*Q21,"") -> 149.1898407 | R22: =IF($A22<=R$20,(DownFactor/UPfactor)*R21,"") -> 150.7467977 | S22: =IF($A22<=S$20,(DownFactor/UPfactor)*S21,"") -> 152.3200032
A23: 2 | D23: 127.7280917 | E23: 129.0610722 | F23: 130.4079638 | G23: 131.7689116 | H23: 133.1440624 | I23: 134.5335644 | J23: 135.9375674 | K23: 137.3562226 | L23: 138.789683 | M23: 140.2381032 | N23: 141.7016391 | O23: 143.1804487 | P23: 144.6746912 | Q23: 146.1845277 | R23: 147.7101211 | S23: 149.2516356
A24: 3 | E24: 126.4612376 | F24: 127.7809971 | G24: 129.1145297 | H24: 130.4619792 | I24: 131.8234907 | J24: 133.1992111 | K24: 134.5892887 | L24: 135.9938732 | M24: 137.413116 | N24: 138.8471702 | O24: 140.2961903 | P24: 141.7603324 | Q24: 143.2397545 | R24: 144.7346159 | S24: 146.2450779
A25: 4 | F25: 125.2069486 | G25: 126.5136183 | H25: 127.8339244 | I25: 129.1680094 | J25: 130.516017 | K25: 131.8780925 | L25: 133.2543827 | M25: 134.645036 | N25: 136.0502023 | O25: 137.470033 | P25: 138.9046812 | Q25: 140.3543014 | R25: 141.81905 | S25: 143.2990849
A26: 5 | G26: 123.9651001 | H26: 125.2588098 | I26: 126.5660206 | J26: 127.8868737 | K26: 129.2215112 | L26: 130.5700772 | M26: 131.9327168 | N26: 133.3095771 | O26: 134.7008064 | P26: 136.1065547 | Q26: 137.5269735 | R26: 138.9622159 | S26: 140.4124366
A27: 6 | H27: 122.7355688 | I27: 124.0164469 | J27: 125.3106924 | K27: 126.6184447 | L27: 127.9398448 | M27: 129.2750352 | N27: 130.6241597 | O27: 131.9873638 | P27: 133.3647944 | Q27: 134.7566 | R27: 136.1629305 | S27: 137.5839377
A28: 7 | I28: 121.5182324 | J28: 122.7864063 | K28: 124.0678149 | L28: 125.3625965 | M28: 126.6708905 | N28: 127.992838 | O28: 129.3285814 | P28: 130.6782647 | Q28: 132.0420334 | R28: 133.4200346 | S28: 134.8124166
A29: 8 | J29: 120.3129699 | K29: 121.5685656 | L29: 122.8372648 | M29: 124.1192043 | N29: 125.4145221 | O29: 126.723358 | P29: 128.045853 | Q29: 129.3821497 | R29: 130.7323921 | S29: 132.0967257
A30: 9 | K30: 119.1196617 | L30: 120.362804 | M30: 121.6189197 | N30: 122.8881444 | O30: 124.1706149 | P30: 125.4664692 | Q30: 126.7758473 | R30: 128.0988901 | S30: 129.4357402
A31: 10 | L31: 117.9381892 | M31: 119.1690015 | N31: 120.4126587 | O31: 121.6692947 | P31: 122.9390451 | Q31: 124.2220467 | R31: 125.5184379 | S31: 126.8283582
A32: 11 | M32: 116.768435 | N32: 117.9870396 | O32: 119.2183617 | P32: 120.462534 | Q32: 121.7196905 | R32: 122.9899669 | S32: 124.2734999
A33: 12 | N33: 115.6102828 | O33: 116.8168008 | P33: 118.0359102 | Q33: 119.2677424 | R33: 120.51243 | S33: 121.7701073
A34: 13 | O34: 114.4636176 | P34: 115.6581689 | Q34: 116.8651868 | R34: 118.0848011 | S34: 119.3171435
A35: 14 | P35: 113.3283254 | Q35: 114.5110288 | R35: 115.7060749 | S35: 116.9135927
A36: 15 | Q36: 112.2042935 | R36: 113.3752664 | S36: 114.5584596
A37: 16 | R37: 111.0914101 | S37: 112.2507689
A38: 17 | S38: 109.9895647
A40: Option values | B40: 0 | C40: 1 | D40: 2 | E40: 3 | F40: 4 | G40: 5 | H40: 6 | I40: 7 | J40: 8 | K40: 9 | L40: 10 | M40: 11 | N40: 12 | O40: 13 | P40: 14 | Q40: 15 | R40: 16 | S40: 17
A41: 0 | B41: =IF($A41<=B$20,MAX(ExercisePrice-B21,(PrUp*C41+PrDown*C42)/(1+RiskfreeRate/250)),"") -> 0.4584196418 | C41: 0.2504709976 | D41: 0.121029211 | E41: 0.04970475689 | F41: 0.0162751465 | G41: 0.003775632043 | H41: 0.0004643910202 | I41: 0 | J41: 0 | K41: 0 | L41: 0 | M41: 0 | N41: 0 | O41: 0 | P41: 0 | Q41: 0 | R41: 0 | S41: =MAX(ExercisePrice-S21,0) -> 0
A42: 1 | B42: =IF($A42<=B$20,MAX(ExercisePrice-B22,(PrUp*C42+PrDown*C43)/(1+RiskfreeRate/250)),"") ->  | C42: 0.6563129572 | D42: 0.3736529633 | E42: 0.188904074 | F42: 0.08151741475 | G42: 0.02817002847 | H42: 0.006926689675 | I42: 0.0009063155585 | J42: 0 | K42: 0 | L42: 0 | M42: 0 | N42: 0 | O42: 0 | P42: 0 | Q42: 0 | R42: 0 | S42: 0
A43: 2 | B43: =IF($A43<=B$20,MAX(ExercisePrice-B23,(PrUp*C43+PrDown*C44)/(1+RiskfreeRate/250)),"") ->  | D43: 0.9253056127 | E43: 0.5494676885 | F43: 0.2910971324 | G43: 0.1322844911 | H43: 0.04838578427 | I43: 0.01265582557 | J43: 0.001768785045 | K43: 0 | L43: 0 | M43: 0 | N43: 0 | O43: 0 | P43: 0 | Q43: 0 | R43: 0 | S43: 0
A44: 3 | B44: =IF($A44<=B$20,MAX(ExercisePrice-B24,(PrUp*C44+PrDown*C45)/(1+RiskfreeRate/250)),"") ->  | E44: 1.282971833 | F44: 0.7953443786 | G44: 0.4422292581 | H44: 0.2121252592 | I44: 0.0823874327 | J44: 0.02301620332 | K44: 0.003451999147 | L44: 0 | M44: 0 | N44: 0 | O44: 0 | P44: 0 | Q44: 0 | R44: 0 | S44: 0
A45: 4 | B45: =IF($A45<=B$20,MAX(ExercisePrice-B25,(PrUp*C45+PrDown*C46)/(1+RiskfreeRate/250)),"") ->  | F45: 1.747024187 | G45: 1.131384995 | H45: 0.6612053398 | I45: 0.3355881887 | J45: 0.1388868278 | K45: 0.04163399049 | L45: 0.006736996192 | M45: 0 | N45: 0 | O45: 0 | P45: 0 | Q45: 0 | R45: 0 | S45: 0
A46: 5 | B46: =IF($A46<=B$20,MAX(ExercisePrice-B26,(PrUp*C46+PrDown*C47)/(1+RiskfreeRate/250)),"") ->  | G46: 2.332901837 | H46: 1.578831027 | I46: 0.9710762124 | J46: 0.5227761683 | K46: 0.2314355436 | L46: 0.07484285646 | M46: 0.01314806747 | N46: 0 | O46: 0 | P46: 0 | Q46: 0 | R46: 0 | S46: 0
A47: 6 | B47: =IF($A47<=B$20,MAX(ExercisePrice-B27,(PrUp*C47+PrDown*C48)/(1+RiskfreeRate/250)),"") ->  | H47: 3.050522741 | I47: 2.157202603 | J47: 1.397698432 | K47: 0.8000267242 | L47: 0.3804539919 | M47: 0.1335532085 | N47: 0.02566005283 | O47: 0 | P47: 0 | Q47: 0 | R47: 0 | S47: 0
A48: 7 | B48: =IF($A48<=B$20,MAX(ExercisePrice-B28,(PrUp*C48+PrDown*C49)/(1+RiskfreeRate/250)),"") ->  | I48: 3.900667603 | J48: 2.879990476 | K48: 1.966471369 | L48: 1.199308635 | M48: 0.6154127235 | N48: 0.2362271697 | O48: 0.05007871405 | P48: 0 | Q48: 0 | R48: 0 | S48: 0
A49: 8 | B49: =IF($A49<=B$20,MAX(ExercisePrice-B29,(PrUp*C49+PrDown*C50)/(1+RiskfreeRate/250)),"") ->  | J49: 4.872022237 | K49: 3.749353393 | L49: 2.696543423 | M49: 1.754968624 | N49: 0.9762585074 | O49: 0.4133710433 | P49: 0.0977347014 | Q49: 0 | R49: 0 | S49: 0
A50: 9 | B50: =IF($A50<=B$20,MAX(ExercisePrice-B30,(PrUp*C50+PrDown*C51)/(1+RiskfreeRate/250)),"") ->  | K50: 5.940451362 | L50: 4.751282754 | M50: 3.592600616 | N50: 2.496025064 | O50: 1.511922459 | P50: 0.7137393199 | Q50: 0.190741157 | R50: 0 | S50: 0
A51: 10 | B51: =IF($A51<=B$20,MAX(ExercisePrice-B31,(PrUp*C51+PrDown*C52)/(1+RiskfreeRate/250)),"") ->  | L51: 7.072182654 | M51: 5.853979849 | N51: 4.63617434 | O51: 3.432547893 | P51: 2.271504726 | Q51: 1.211439405 | R51: 0.3722545671 | S51: 0
A52: 11 | B52: =IF($A52<=B$20,MAX(ExercisePrice-B32,(PrUp*C52+PrDown*C53)/(1+RiskfreeRate/250)),"") ->  | M52: 8.231565036 | N52: 7.012960389 | O52: 5.781638288 | P52: 4.537466011 | Q52: 3.280309454 | R52: 2.010033111 | S52: 0.726500064
A53: 12 | B53: =IF($A53<=B$20,MAX(ExercisePrice-B33,(PrUp*C53+PrDown*C54)/(1+RiskfreeRate/250)),"") ->  | N53: 9.389717232 | O53: 8.183199154 | P53: 6.964089757 | Q53: 5.732257637 | R53: 4.48757002 | S53: 3.229892745
A54: 13 | B54: =IF($A54<=B$20,MAX(ExercisePrice-B34,(PrUp*C54+PrDown*C55)/(1+RiskfreeRate/250)),"") ->  | O54: 10.53638245 | P54: 9.34183106 | Q54: 8.134813238 | R54: 6.915198882 | S54: 5.682856533
A55: 14 | B55: =IF($A55<=B$20,MAX(ExercisePrice-B35,(PrUp*C55+PrDown*C56)/(1+RiskfreeRate/250)),"") ->  | P55: 11.67167462 | Q55: 10.48897123 | R55: 9.293925054 | S55: 8.086407281
A56: 15 | B56: =IF($A56<=B$20,MAX(ExercisePrice-B36,(PrUp*C56+PrDown*C57)/(1+RiskfreeRate/250)),"") ->  | Q56: 12.79570655 | R56: 11.62473364 | S56: 10.44154037
A57: 16 | B57: =IF($A57<=B$20,MAX(ExercisePrice-B37,(PrUp*C57+PrDown*C58)/(1+RiskfreeRate/250)),"") ->  | R57: 13.90858991 | S57: 12.74923115
A58: 17 | S58: 15.01043529
